Cogmind - Beta 16.1 @@@ ROGUE MODE // 2026.02.10 @ 19:03:59 Player: horseradish Result: Destroyed by X-57 Shotgunner with Shotgun Performance ------------- Evolutions (2) 1000 Regions Visited (3) 600 Robots Destroyed (48) 240 Value Destroyed (1200) 1200 Prototype IDs (0) 0 Alien Tech Used (0) 0 Bonus (0) 0 TOTAL SCORE: 3040 Bonus ------- None Cogmind --------- Core Integrity 0/550 Matter 298/300 Energy 100/100 System Corruption 1% Temperature Cool (9) Movement Core (200) Ox3 Location -8/Materials Parts ------- > --- POWER (1) -------- (None) > --- PROPULSION (4) --- (None) > --- UTILITY (4) ------ Improved Heat Sink Medium Storage Unit System Shield > --- WEAPON (2) ------- (None) > --- INVENTORY (10) --- Improved Heat Sink Visual Processing Unit Advanced Visual Processing Unit Reaction Control System Heavy Assault Rifle Peak State ------------ > --- POWER ------------ Light Ion Engine > --- PROPULSION ------- Light Treads Carbon-fiber Leg Compact Wheel Compact Wheel > --- UTILITY ---------- Improved Heat Sink Medium Storage Unit Visual Processing Unit System Shield > --- WEAPON ----------- Beam Rifle Light Assault Rifle > --- INVENTORY -------- Ion Engine Improved Heat Sink Visual Processing Unit Advanced Visual Processing Unit Reaction Control System Particle Cannon Heavy Assault Rifle [Rating: 20] Favorites ----------- Power Light Ion Engine Engine Light Ion Engine Propulsion Aluminum Leg Treads Light Treads Leg Aluminum Leg Wheel Wheel Utility Medium Storage Unit Device Heat Sink Storage Medium Storage Unit Processor Visual Processing Unit Hackware System Shield Protection Light Armor Plating Weapon Small Laser Energy Gun Small Laser Energy Cannon Beam Cannon Ballistic Gun Light Assault Rifle Build | -11 -10 -9 -8 ------- Run | Yrd Mat Mat Mat Slots Evolved 4 | . . 2 2 Power . | . . . . Propulsion 2 | . . 1 1 Utility 2 | . . 1 1 Weapon . | . . . . Parts Attached 51 | 6 8 16 21 Power 8 | 1 1 2 4 Engine 8 | 1 1 2 4 Core . | . . . . Reactor . | . . . . Propulsion 17 | 2 3 6 6 Treads 3 | . . 2 1 Leg 8 | 2 3 2 1 Wheel 6 | . . 2 4 Hover . | . . . . Flight . | . . . . Utility 12 | 1 2 3 6 Device 6 | 1 1 1 3 Storage 1 | . 1 . . Processor 1 | . . 1 . Hackware 1 | . . . 1 Protection 3 | . . 1 2 Artifact . | . . . . Weapon 14 | 2 2 5 5 Energy Gun 5 | 1 . 2 2 Energy Cannon 2 | . 1 . 1 Ballistic Gun 7 | 1 1 3 2 Ballistic Cannon . | . . . . Launcher . | . . . . Special Weapon . | . . . . Impact Weapon . | . . . . Slashing Weapon . | . . . . Piercing Weapon . | . . . . Special Melee Weapon . | . . . . Unidentified Prototypes . | . . . . Parts Lost 34 | . 3 9 22 Power 6 | . 1 2 3 Propulsion 12 | . 1 4 7 Utility 8 | . . 2 6 Weapon 8 | . 1 1 6 Highest Loss Streak 10 | . 1 4 10 To Critical Strikes 1 | . . . 1 Average Backups 7 | 2 7 9 7 Power 1 | . 2 1 . Propulsion . | 1 1 . . Utility 2 | . 1 3 4 Weapon 2 | . 2 3 2 Tool/Special . | . . . . Unused Backups 16 | . 4 6 6 Power 2 | . 1 1 . Propulsion 2 | . 1 1 . Utility 7 | . . 2 5 Weapon 5 | . 2 2 1 Tool/Special . | . . . . Average Slot Usage (%) 86 | . 87 87 84 Engine 9 | . 10 9 8 Treads 3 | . . 7 4 Leg 15 | . 23 16 6 Wheel 6 | . . 1 17 Device 10 | . 14 9 6 Storage 10 | . 12 11 9 Processor 6 | . . 10 8 Protection 1 | . . . 3 Energy Gun 8 | . 7 6 9 Energy Cannon 4 | . 6 7 . Ballistic Gun 9 | . 13 6 7 Peak Build Rating 20 | 6 7 14 20 Average Rating 10 | 4 6 11 14 On Entrance 6 | . 6 7 14 Avg Prop Armor Cover (%) 9 | . . 9 10 Naked Turns . | . . . . Heaviest Build 29 | 6 21 24 29 Greatest Support 32 | 20 20 30 32 Greatest Overweight (x) 5 | . 2 4 5 Average Overweight (x) . | . . . . Largest Inventory Capacity 10 | 5 10 10 10 Average Capacity 9 | 5 9 10 10 Most Carried 10 | 5 10 10 10 Average Carried 7 | 2 7 9 7 Final Capacity 10 | 5 10 10 10 Final Carried 10 | 5 9 10 5 Class Distribution -------------------- 55% | Scavenger-Mutant 44% | Mutant Dominant Class ---------------- Mutant | -10/Materials Scavenger-Mutant | -9/Materials Scavenger-Mutant | -8/Materials Resources | -11 -10 -9 -8 ----------- Run | Yrd Mat Mat Mat Matter Collected 974 | 266 186 260 262 Remotely . | . . . . Salvage Created 1744 | 69 342 819 514 Parts 104 | 3 19 63 19 Haulers Intercepted . | . . . . Recyclers Shooed 3 | . . . 3 Parts Field Recycled . | . . . . Retrieved Matter . | . . . . Parts Self-Destructed . | . . . . Prevented . | . . . . Parts Restored . | . . . . Kills | -11 -10 -9 -8 ------- Run | Yrd Mat Mat Mat Combat Hostiles Destroyed 31 | 1 9 15 6 Guns 16 | 1 2 9 4 Cannons 10 | . 5 5 . AOE 2 | . 2 . . Classes Destroyed 10 | 2 3 4 1 Worker 8 | . 3 3 2 Builder 2 | . . 2 . Tunneler 1 | 1 . . . Recycler 3 | . . 1 2 Watcher 3 | . 1 2 . Swarmer 6 | . 2 4 . Grunt 13 | 1 7 4 1 Brawler 1 | . . 1 . Sentry 9 | . . 6 3 Hunter 2 | . . . 2 Best Kill Streak 8 | 2 3 8 4 Combat Bots Only 4 | 1 2 4 2 Max Kills in Single Turn 3 | 2 3 1 1 Gunslinging . | . . . . Exploded 2 | . 2 . . Melee . | . . . . Uniques/NPCs Destroyed . | . . . . Combat | -11 -10 -9 -8 -------- Run | Yrd Mat Mat Mat Hostile Shots Fired 408 | 9 60 140 199 Missed 114 | 5 22 38 49 Hits 294 | 4 38 102 150 Melee 7 | . . 4 3 Projectile 287 | 4 38 98 147 Critical Strikes 9 | . 1 1 7 Damage Taken 3894 | 41 505 1219 2129 Core 891 | 31 51 251 558 Absorbed by Shields . | . . . . Core Remaining (%) 63 | 87 67 37 . Volleys Fired 166 | 6 40 58 62 Largest 2 | 2 2 2 2 Hottest 100 | 60 80 100 96 Shots Fired 326 | 12 79 115 120 Gun 261 | 12 56 75 118 Cannon 65 | . 23 40 2 Launcher . | . . . . Special . | . . . . Kinetic 125 | 6 39 38 42 Thermal 201 | 6 40 77 78 Explosive . | . . . . Electromagnetic . | . . . . Robot Hit Streak 11 | 7 10 11 7 Robot Miss Streak 5 | 1 5 4 3 Penetration Max . | . . . . Secondary Targets 1 | . . . 1 Max Gunslinging Chain 1 | . . . 1 Shots Hit Robots 194 | 9 37 75 73 Core Hits 70 | 3 15 32 20 Critical Kills 2 | . 1 . 1 Critical Parts Destroyed 1 | . . . 1 Critical Strikes 10 | . 1 2 7 Burn 7 | . . 2 5 Destroy 3 | . 1 . 2 Melee Attacks . | . . . . Impact . | . . . . Slashing . | . . . . Piercing . | . . . . Sneak Attacks . | . . . . Combat Hostiles . | . . . . Follow-up Attacks . | . . . . Damage Inflicted 3227 | 95 830 1239 1063 Guns 2175 | 95 282 756 1042 Cannons 665 | . 193 451 21 Explosions 352 | . 352 . . Melee . | . . . . Ramming 35 | . 3 32 . Kinetic 938 | 40 219 379 300 Thermal 2254 | 55 608 828 763 Explosive . | . . . . Electromagnetic . | . . . . Impact . | . . . . Slashing . | . . . . Piercing . | . . . . Highest Corruption 3 | . . 3 1 Average Corruption 2 | . . 3 1 Corruption Purged . | . . . . Corruption Blocked . | . . . . Effects 11 | . . 9 2 Message Errors 2 | . . 2 . Matter Fused 2 | . . 1 1 Heat Flow Errors 2 | . . 1 1 Energy Discharges 1 | . . 1 . Data Loss (minor) 3 | . . 3 . Alerts 1 | . . 1 . Overload Shots . | . . . . Overflow Damage 72 | . 72 . . Projectiles . | . . . . Explosions 72 | . 72 . . Melee . | . . . . Knockbacks . | . . . . Impact . | . . . . Kinetic . | . . . . Secondary . | . . . . Self-Inflicted Damage 56 | . 56 . . Shots 1 | . 1 . . Rammed . | . . . . Targets Rammed 7 | . 1 6 . Kicked 7 | . 1 6 . Crushed . | . . . . Highest Temperature 474 | 52 88 309 474 Average Temperature 93 | 26 22 110 152 Received Heat Transfer 1170 | 24 243 363 540 Effects 6 | . . . 6 Shutdowns 2 | . . . 2 Damage (major) 4 | . . . 4 Siege Activations . | . . . . Martial Activations . | . . . . Shielding Activations . | . . . . Robots Disrupted . | . . . . Combat Hostiles . | . . . . Robots Corrupted . | . . . . Combat Hostiles . | . . . . Parts Fried . | . . . . Impact Corruptions . | . . . . Robots Melted 3 | . . 1 2 Combat Hostiles 3 | . . 1 2 Parts Melted 8 | . 2 3 3 Heat Transferred 5099 | 125 757 2015 2202 Parts Sabotaged . | . . . . Parts Stolen . | . . . . Parts Stripped . | . . . . Power Chain Reactions . | . . . . Alert | -11 -10 -9 -8 ------- Run | Yrd Mat Mat Mat Maximum Alert Level 1 | . . 1 . Low Security (%) 96 | 100 100 86 100 Level 1 3 | . . 13 . Level 2 . | . . . . Level 3 . | . . . . Level 4 . | . . . . Level 5 . | . . . . High Security . | . . . . Max Security . | . . . . Peak Influence 224 | 25 172 224 84 Initial 84 | . 3 65 84 Average 74 | 3 92 122 24 Influence Increases 1097 | 25 388 479 205 Destroy 0b10 Robot/C 620 | 20 180 300 120 Destroy 0b10 Robot/NC 85 | 5 20 40 20 Destroy Leader 166 | . 22 94 50 Disable Machine 45 | . 30 15 . Destroy Structure 31 | . 31 . . Lose Combat Pursuer 150 | . 105 30 15 Influence Decreases 1097 | 20 237 435 405 Entered New Map 209 | . 2 91 116 Time Decay 679 | 20 205 254 200 Lost Part 209 | . 30 90 89 Squads Dispatched 6 | . 2 1 3 Investigation 2 | . 1 1 . Extermination . | . . . . Reinforcement 4 | . 1 . 3 Assault . | . . . . Garrison . | . . . . Intercept . | . . . . Searches Triggered . | . . . . Construction Impeded . | . . . . Haulers Reinforced . | . . . . Active Scanning Responses . | . . . . Cargo Convoy Interrupts . | . . . . Stealth | -11 -10 -9 -8 --------- Run | Yrd Mat Mat Mat Distress Signals 3 | . 1 2 . Communications Jammed . | . . . . Distress Signals . | . . . . Times Spotted 61 | 1 18 24 18 Peak Tracking Total 8 | 1 5 8 7 Tactical Retreats 9 | . 6 2 1 Traps | -11 -10 -9 -8 ------- Run | Yrd Mat Mat Mat Traps Triggered 1 | . . . 1 Indirectly . | . . . . Trap Hack Attempts . | . . . . Triggered . | . . . . Disarmed . | . . . . Reprogrammed . | . . . . Reused . | . . . . Traps Extracted . | . . . . Installed . | . . . . Triggered . | . . . . Machines | -11 -10 -9 -8 ---------- Run | Yrd Mat Mat Mat Machines Disabled 3 | . 2 1 . Max in Single Turn 1 | . 1 1 . Machines Repaired . | . . . . Machines Dismantled . | . . . . Machines Sabotaged . | . . . . Overloaded Fab Kills . | . . . . Hacking | -11 -10 -9 -8 --------- Run | Yrd Mat Mat Mat Machines Accessed 5 | . 3 1 1 Terminals 4 | . 2 1 1 Fabricators . | . . . . Repair Stations . | . . . . Recycling Units 1 | . 1 . . Scanalyzers . | . . . . Garrison Access . | . . . . Total Hacks 12 | . 5 3 4 Successful 7 | . 2 1 4 Failed 5 | . 3 2 . Catastrophic . | . . . . Database Lockouts . | . . . . Manual 2 | . . . 2 Terminals 11 | . 4 3 4 Fabricators . | . . . . Repair Stations . | . . . . Recycling Units 1 | . 1 . . Scanalyzers . | . . . . Garrison Access . | . . . . Terminal Hacks 6 | . 1 1 4 Record 4 | . . 1 3 Alert Level 1 | . 1 . . Zone Layout 1 | . . . 1 Fabricator Hacks . | . . . . Repair Station Hacks . | . . . . Recycling Unit Hacks 1 | . 1 . . Report Inventory 1 | . 1 . . Scanalyzer . | . . . . Garrison Access Hacks . | . . . . Unauthorized Hacks . | . . . . Terminals . | . . . . Fabricators . | . . . . Repair Stations . | . . . . Recycling Units . | . . . . Scanalyzers . | . . . . Garrison Access . | . . . . Data Cores Recovered . | . . . . Used . | . . . . Hacking Detections 5 | . 3 1 1 Full Trace Events 2 | . 1 1 . Feedback Events . | . . . . Feedback Blocked . | . . . . Robot Schematics Acquired . | . . . . Robots Built . | . . . . Authchips . | . . . . Time . | . . . . Total Robot Build Rating . | . . . . Part Schematics Acquired . | . . . . Parts Built . | . . . . Authchips . | . . . . Time . | . . . . Total Part Build Rating . | . . . . Part Studies Acquired . | . . . . Parts Repaired . | . . . . Time . | . . . . Parts Recycled . | . . . . Recycled Matter . | . . . . Retrieved Matter . | . . . . Retrieved Components . | . . . . Parts Scanalyzed . | . . . . Part Schematics Acquired . | . . . . Parts Damaged . | . . . . Bothacking | -11 -10 -9 -8 ------------ Run | Yrd Mat Mat Mat Used RIF Installer . | . . . . Robots Hacked . | . . . . Non-combat . | . . . . Combat . | . . . . Robot Hacks Applied . | . . . . Relay Couplers Released . | . . . . Fabnet Peak Effective % . | . . . . Robots Rewired . | . . . . Allies Hacked . | . . . . Hacks Repelled . | . . . . Allies | -11 -10 -9 -8 -------- Run | Yrd Mat Mat Mat Total Allies . | . . . . Largest Group . | . . . . Highest-Rated Group . | . . . . Highest-Rated Ally . | . . . . Total Orders . | . . . . Ally Attacks . | . . . . Total Damage . | . . . . Kills . | . . . . Allies Corrupted . | . . . . Allies Melted . | . . . . Intel | -11 -10 -9 -8 ------- Run | Yrd Mat Mat Mat Active Infowar (turns) 1604 | . 502 544 558 Optics 1079 | . . 521 558 Seismic 578 | . 502 76 . Robot Analysis Total . | . . . . Derelict Logs Recovered . | . . . . Drone Launches . | . . . . Drone Recoveries . | . . . . Exploration | -11 -10 -9 -8 ------------- Run | Yrd Mat Mat Mat Turns Passed 1793 | 120 566 544 563 Spaces Moved 888 | 84 289 231 284 Core 22 | 16 . 1 5 Treads 43 | . . 43 . Legs 597 | 68 289 154 86 Wheels 226 | . . 33 193 Hover . | . . . . Flight . | . . . . Fastest Speed 50 | 50 120 95 80 Average Speed 130 | 106 143 133 122 Slowest Speed 300 | 120 260 250 300 Overloaded Moves . | . . . . Propulsion Burnouts . | . . . . Robots Hopped . | . . . . Potential Cave-ins . | . . . . Cave-ins Triggered . | . . . . Exploration Rate (%) 22 | 6 43 22 20 Regions Visited 3 Branch Regions . Pre-discovered Areas . | . . . . Known Exits Taken . | . . . . Unknown Exits Taken 3 | 1 1 1 . Scrap Searched . | . . . . Spaces Dug . | . . . . Terrain Destroyed 39 | . 39 . . Melee . | . . . . Projectile . | . . . . AOE 39 | . 39 . . Terrain Rammed . | . . . . Walls Destroyed . | . . . . Machines Disabled . | . . . . Actions | -11 -10 -9 -8 --------- Run | Yrd Mat Mat Mat Total 1199 | 100 363 353 383 Wait 16 | . 6 10 . Move 885 | 83 288 230 284 Hop . | . . . . Pick Up 39 | 5 11 17 6 Fast Attach 25 | 6 2 8 9 Attach 17 | . 1 7 9 Detach 1 | . . . 1 Swap 15 | . 6 3 6 Drop 28 | . 8 14 6 Fire 166 | 6 40 58 62 Melee . | . . . . Ram . | . . . . Kick 7 | . 1 6 . Crush . | . . . . Escape Stasis . | . . . . Rewire . | . . . . Trap . | . . . . Miscellaneous . | . . . . Route ------- -11/Scrapyard -10/Materials -9/Materials -8/Materials (discovered 1 exit: [*Fac]) History --------- Turn | Location | Event 2 | -11/Scrapyard | Met Revision 17 72 | -11/Scrapyard | Discovered new exit (range 8) 121 | -11/Scrapyard | Entered Materials 310 | -10/Materials | Build established: Mutant 599 | -10/Materials | Discovered new exit (range 6) 687 | -10/Materials | Entered another Materials area 687 | -9/Materials | Evolved 2 slots: Propulsion x1, Utility x1 1081 | -9/Materials | Core integrity fell below 50% 1087 | -9/Materials | Build established: Scavenger-Mutant 1090 | -9/Materials | Lost 4 parts (1p2n1w) 1190 | -9/Materials | Discovered new exit (range 18) 1231 | -9/Materials | Entered another Materials area 1231 | -8/Materials | Evolved 2 slots: Propulsion x1, Utility x1 1399 | -8/Materials | Lost 4 parts (2u2w) 1600 | -8/Materials | Lost 7 parts (1p3n2u1w) 1780 | -8/Materials | Discovered new exit (range 7) 1786 | -8/Materials | Core integrity fell below 50% 1793 | -8/Materials | Core integrity fell below 20% 1794 | -8/Materials | Destroyed by X-57 Shotgunner with Shotgun Last Messages --------------- O-16 Technician: "IFF HANDSHAKE FAILED. SECURING TERMINAL." ALERT: Suspicious intruders detected, dispatching Specialist reinforcements to area. [Achievement: Heavy Suspicion] ALERT: Hostiles spotted, dispatching reinforcements to Terminal M007. System corrupted: Heat flow error (+170). Beam Rifle destroyed. Lgt. Treads destroyed. EXIT=FOUND Lgt. Ion Engine destroyed. Com. Wheel destroyed. Critical hit (Burn: +37). Ion Engine destroyed. Visual Processing Unit destroyed. System corrupted: Matter fused (-8). Com. Wheel destroyed. Lgt. Assault Rifle destroyed. Critical hit (Destroy). Particle Cannon destroyed. Carbon-fiber Leg destroyed. Map ----- +----------------------------------------------------+ | ???????????????????????????????????????????????# | | ???????????????????????????????????????????????### | | ?????????????????????????????????????????????????? | | ?????????????????????????????????????????????????? | | ?????????????????????????????????????????????????? | | ?????????????????????????????????????????????????? | | ?????????????????????????????????????????????????? | | ???????????????????????????????????????????????### | | ???????????????????????????????????????????????# | | ???????????????????????????????????????????????# / | | ???????????????????????????????????????????????# = | | ??????????????????????####?????????????????????# * | | ?????????????????????? ?????????????????????# | | ?????????????????????? ?????????H???????????# | | ?????????????????????? ?????????????????????# | | ??????????????????????# ###+### # ### | | ??????????????????????# ## ###+########+###?? | | ??????????????????????# ## # ## #??## | | ??????????????????????# ## ! # ## #??# | | ??????????????????????# ## # ## #?## | | ??????????????????????# ## # ## #?# | | ??????????????????????# ## "" # ## #?## | | ??????????????????????# ## T" # """ """ ## #??# | | ??????????????????????# ## "" / """ """ + #??# | | ??????????????????????# ## # """ """ # #??# | | ??????????????????????# @#####+########### ##### | | ??????????????????????# l ^ | | ??????????????????????# gg ^ ### | | ??????????????????????#xxggm #?? | | ??????????????????????+ ###+#############+###### | | ??????????????????????# # # T | | ??????????????????????# < #""" """ # | | ??????????????????????# #"R """ # !! | | ??????????????????????#####""" """ # ! """ | | ??????????????????????????# # !! """ ! | | ??????????????????????????# # """ | | ??????????????????????????# # | | ??????????????????????????######################## | | | | | | | | | | | | | | | | | | | | | | | | | +----------------------------------------------------+ Best States ------------- Heat Dissipation 45 Energy Generation 14 Energy Capacity 275 Matter Stores 300 Matter Capacity 300 Sight Range 18 Terrain Scan Density 10 Armor Coverage 150 Evasion (%) 55 Recoil Reduction 1 Particle Charging 15 Defensive Hacking 10 Item Schematics ----------------- None Robot Schematics ------------------ None Fabricated ------------ Nothing Repaired ---------- Nothing Studied --------- None Alien Tech Used ----------------- None Achievements -------------- Heavy Suspicion It's Just You Challenges ------------ None Game ------ Seed HeartChipMaul Manual? 0 Play Time 00:46:39 Cumulative 2.5 hours Start 2026.02.10 @ 18:17:30 End 2026.02.10 @ 19:03:59 Sessions 1 Manual Loads 0 Difficulty Rogue Special Mode None Game No. 4 Rogue 4 Adventurer 0 Explorer 0 Win Type - Total 0 Types 0/0/0/0/0/0/0/0/0/0 Lore% 0 Gallery% 3 Achievement% 4 Wizard Run 0 Options --------- Layout 0 ASCII 1 Keyboard 1 Movement Vi Keybinds 0 Fullscreen 2 Font 18/Terminus Map View 76x50 Zoom Use 0% Tactical HUD 0 Map Filters NONE Filters NONE Steam 1 RUN: e05498e9-8350-4642-a4d1-380cd5581c17